[Event "IIFL Wealth  4th Mumbai Junior U-13"]
[Site "Mumbai"]
[Date "2019.01.06"]
[Round "8"]
[White "Daware Arth K"]
[Black "Abhinav Dubey"]
[Result "0-1"]
[ECO "A09"]
[WhiteElo "1155"]
[BlackElo "1497"]
[Annotator "NA"]
[PlyCount "74"]
[EventDate "2018.12.30"]
[EventType "swiss"]
[EventCountry "IND"]
[SourceTitle "playchess.com"]
[Source "ChessBase"]
[SourceQuality "1"]
[TimeControl "40/5400+30:1800+30"]

1. Nf3 {[%emt 0:00:00]} d5 {[%emt 0:00:00]} 2. c4 {[%emt 0:00:00]} d4 {[%emt 0:00:00]} 3. d3 {[%emt 0:00:31]} c5 {[%emt 0:00:04]} 4. g3 {[%emt 0:00:35]} g6 {[%emt 0:00:07]} 5. Bg2 {[%emt 0:01:00]} Bg7 {[%emt 0:00:07]} 6. O-O {[%emt 0:00:54]} Nc6 {[%emt 0:01:15]} 7. a3 {[%emt 0:06:01]} a5 {[%emt 0:00:32]} 8. Nbd2 {[%emt 0:02:49]} Nf6 {[%emt 0:01:05]} 9. Re1 {[%emt 0:02:25]} O-O {[%emt 0:00:37]} 10. Qc2 {[%emt 0:02:27]} e5 {[%emt 0:10:46]} 11. Ng5 {[%emt 0:20:04]} Nd7 {[%emt 0:13:57]} 12. Nde4 {[%emt 0:19:32]} h6 {[%emt 0:01:49]} 13. Nf3 {[%emt 0:04:28]} Qc7 {[%emt 0:00:51]} 14. Ned2 {[%emt 0:03:32]} b6 {[%emt 0:02:04]} 15. Nf1 {[%emt 0:07:16]} Bb7 {[%emt 0:03:53]} 16. e3 {[%emt 0:05:18]} f5 {[%emt 0:01:58]} 17. exd4 {[%emt 0:03:41]} cxd4 {[%emt 0:00:27]} 18. N1d2 {[%emt 0:05:46]} Rae8 {[%emt 0:03:22]} 19. b3 {[%emt 0:08:45]} Nc5 {[%emt 0:01:13]} 20. Rb1 {[%emt 0:02:38]} e4 {[%emt 0:14:13]} 21. dxe4 {[%emt 0:01:42]} d3 {[%emt 0:00:22]} 22. Qd1 {[%emt 0:00:32]} fxe4 {[%emt 0:00:11]} 23. Nh4 Bd4 {[%emt 0:00:13]} 24. Rf1 {[%emt 0:01:14]} Rxf2 {[%emt 0:11:37]} 25. Kh1 {[%emt 0:00:44]} e3 {[%emt 0:00:20]} 26. Bd5+ {[%emt 0:00:15]} Kh7 {[%emt 0:00:31]} 27. Qg4 {[%emt 0:00:38]} Qg7 {[%emt 0:02:55]} 28. Rxf2 {[%emt 0:00:33]} exf2 {[%emt 0:00:14]} 29. Kg2 {[%emt 0:00:23]} Ne5 {[%emt 0:00:51]} 30. Bxb7 {[%emt 0:00:42]} Qxb7+ {[%emt 0:00:09]} 31. Ndf3 {[%emt 0:00:29]} Nxg4 {[%emt 0:00:13]} 32. Bd2 {[%emt 0:00:33]} Ne4 {[%emt 0:00:31]} 33. Rd1 {[%emt 0:00:30]} Nxd2 34. Rxd2 {[%emt 0:00:07]} Re2 {[%emt 0:01:19]} 35. Rd1 {[%emt 0:00:20]} Nxh2 {[%emt 0:00:15]} 36. Kxh2 {[%emt 0:00:18]} f1=Q+ {[%emt 0:00:09]} 37. Ng2 {[%emt 0:00:24]} Qxg2# {[%emt 0:00:02]} 0-1

[Event "IIFL Wealth  4th Mumbai Junior U-13"]
[Site "Mumbai"]
[Date "2019.01.06"]
[Round "8"]
[White "Jain Vihaan"]
[Black "Vihaan Dumir"]
[Result "0-1"]
[ECO "C10"]
[WhiteElo "1149"]
[BlackElo "1013"]
[Annotator "NA"]
[PlyCount "122"]
[EventDate "2018.12.30"]
[EventType "swiss"]
[EventCountry "IND"]
[SourceTitle "playchess.com"]
[Source "ChessBase"]
[SourceQuality "1"]
[TimeControl "40/5400+30:1800+30"]

1. e4 {[%emt 0:00:00]} e6 {[%emt 0:01:08]} 2. d4 {[%emt 0:00:00]} d5 {[%emt 0:00:05]} 3. Nd2 {[%emt 0:00:00]} dxe4 {[%emt 0:00:10]} 4. Nxe4 {[%emt 0:00:00]} Bd7 {[%emt 0:00:07]} 5. Nf3 {[%emt 0:00:52]} Bc6 {[%emt 0:00:10]} 6. Bd3 {[%emt 0:00:26]} Nd7 {[%emt 0:00:10]} 7. O-O {[%emt 0:00:38]} Ngf6 {[%emt 0:00:09]} 8. Nxf6+ {[%emt 0:01:22]} Nxf6 {[%emt 0:00:12]} 9. c3 {[%emt 0:00:26]} Bxf3 {[%emt 0:00:19]} 10. Qxf3 {[%emt 0:00:12]} Be7 {[%emt 0:00:19]} 11. Bf4 {[%emt 0:00:29]} O-O {[%emt 0:00:17]} 12. Rab1 {[%emt 0:01:51]} c6 {[%emt 0:01:00]} 13. Bc2 {[%emt 0:05:51]} Qd5 {[%emt 0:00:34]} 14. Qd3 {[%emt 0:05:54]} Qxa2 {[%emt 0:02:42]} 15. Bg5 {[%emt 0:01:04]} g6 {[%emt 0:02:44]} 16. h4 {[%emt 0:02:21]} Qd5 {[%emt 0:00:23]} 17. Rfe1 {[%emt 0:04:26]} Kg7 {[%emt 0:01:18]} 18. Re5 {[%emt 0:00:23]} Qd8 {[%emt 0:05:02]} 19. Qf3 {[%emt 0:02:55]} Nd7 {[%emt 0:01:18]} 20. Bxe7 {[%emt 0:01:32]} Qxe7 {[%emt 0:01:28]} 21. Rg5 {[%emt 0:00:25]} Kh8 {[%emt 0:03:48]} 22. Qh3 {[%emt 0:05:41]} Rg8 {[%emt 0:02:06]} 23. Re1 {[%emt 0:02:00]} Nf6 {[%emt 0:02:17]} 24. h5 {[%emt 0:11:03]} Nxh5 {[%emt 0:05:05]} 25. Rxh5 {[%emt 0:00:09]} gxh5 {[%emt 0:01:47]} 26. Qxh5 {[%emt 0:00:39]} Rg7 {[%emt 0:05:01]} 27. f4 {[%emt 0:01:34]} Rag8 {[%emt 0:01:47]} 28. Kh1 {[%emt 0:00:40]} Qf6 {[%emt 0:02:29]} 29. g3 {[%emt 0:01:14]} h6 {[%emt 0:02:40]} 30. Rg1 {[%emt 0:01:16]} Qxf4 {[%emt 0:07:44]} 31. gxf4 {[%emt 0:00:06]} Rxg1+ {[%emt 0:00:06]} 32. Kh2 {[%emt 0:00:02]} R8g2+ {[%emt 0:00:16]} 33. Kh3 {[%emt 0:00:06]} Rh1+ {[%emt 0:00:36]} 34. Kxg2 {[%emt 0:00:09]} Rxh5 {[%emt 0:00:14]} 35. Bd1 {[%emt 0:00:14]} Rb5 {[%emt 0:00:56]} 36. b3 {[%emt 0:00:10]} c5 {[%emt 0:00:28]} 37. Be2 {[%emt 0:00:25]} Rxb3 {[%emt 0:00:13]} 38. dxc5 {[%emt 0:00:07]} Rxc3 {[%emt 0:00:23]} 39. Bh5 {[%emt 0:00:17]} Rxc5 {[%emt 0:00:45]} 40. Bxf7 {[%emt 0:00:00]} Rf5 {[%emt 0:00:00]} 41. Bxe6 {[%emt 0:00:13]} Rxf4 {[%emt 0:00:56]} 42. Bd5 {[%emt 0:00:05]} Rb4 {[%emt 0:00:27]} 43. Kf2 {[%emt 0:00:06]} a5 {[%emt 0:00:21]} 44. Ke2 {[%emt 0:00:09]} h5 {[%emt 0:00:27]} 45. Bf3 {[%emt 0:00:03]} h4 {[%emt 0:00:23]} 46. Kd2 {[%emt 0:00:06]} a4 {[%emt 0:00:30]} 47. Kc2 {[%emt 0:00:06]} a3 {[%emt 0:00:16]} 48. Bd5 {[%emt 0:00:08]} h3 {[%emt 0:00:16]} 49. Kc3 {[%emt 0:00:16]} Rh4 {[%emt 0:00:37]} 50. Bxb7 {[%emt 0:00:18]} Ra4 {[%emt 0:00:42]} 51. Bd5 {[%emt 0:00:20]} a2 {[%emt 0:00:17]} 52. Bxa2 {[%emt 0:00:02]} Rxa2 {[%emt 0:00:09]} 53. Kb3 {[%emt 0:00:05]} Rg2 {[%emt 0:00:17]} 54. Kc3 {[%emt 0:00:04]} h2 {[%emt 0:00:15]} 55. Kd3 {[%emt 0:00:04]} h1=Q {[%emt 0:00:17]} 56. Ke3 {[%emt 0:00:06]} Qh3+ {[%emt 0:00:19]} 57. Ke4 {[%emt 0:00:03]} Rg4+ {[%emt 0:00:43]} 58. Kf5 {[%emt 0:00:07]} Qh5+ {[%emt 0:00:17]} 59. Kf6 {[%emt 0:00:05]} Rg6+ {[%emt 0:00:36]} 60. Kf7 {[%emt 0:00:07]} Qh7+ {[%emt 0:00:21]} 61. Kf8 {[%emt 0:00:03]} Rg8# {[%emt 0:00:24]} 0-1

[Event "IIFL Wealth  4th Mumbai Junior U-13"]
[Site "Mumbai"]
[Date "2019.01.06"]
[Round "8"]
[White "Iyer Aarav"]
[Black "Swara Lakshmi S Nair"]
[Result "0-1"]
[ECO "B92"]
[WhiteElo "1124"]
[BlackElo "1359"]
[Annotator "NA"]
[PlyCount "108"]
[EventDate "2018.12.30"]
[EventType "swiss"]
[EventCountry "IND"]
[SourceTitle "playchess.com"]
[Source "ChessBase"]
[SourceQuality "1"]
[TimeControl "40/5400+30:1800+30"]

1. e4 c5 2. Nf3 d6 3. d4 cxd4 4. Nxd4 Nf6 5. Nc3 a6 6. Be2 e5 7. Nb3 Be7 8. Be3 Be6 9. Qd2 Nbd7 10. O-O O-O 11. Rad1 Rc8 12. Kh1 Qc7 13. f3 b5 14. a3 Rfd8 15. Bd3 Nb6 16. Qf2 Nfd7 17. f4 exf4 18. Bxf4 Ne5 19. Nd4 Bf6 20. Nde2 Nbc4 21. Bxc4 Nxc4 22. Bc1 Nxa3 23. Nd4 Nc4 24. Nde2 Qb7 25. b3 Nb6 26. Bb2 d5 27. Nxd5 Nxd5 28. exd5 Bxb2 29. dxe6 fxe6 30. Rxd8+ Rxd8 31. Nf4 Rf8 32. Qe2 e5 33. Nd3 Rxf1+ 34. Qxf1 Bd4 35. Qf5 g6 36. Qe6+ Qf7 37. Qxf7+ Kxf7 38. g4 a5 39. Kg2 Ke6 40. Kf3 Kd5 41. Ne1 a4 42. c4+ bxc4 43. bxa4 c3 44. Ke2 Kc4 45. Nf3 Kb4 46. Kd3 Kxa4 47. Ke2 Ka5 48. Kd3 Kb4 49. Kc2 Kc4 50. Nxd4 exd4 51. Kc1 Kb3 52. Kb1 d3 53. Kc1 d2+ 54. Kb1 d1=Q# 0-1

[Event "IIFL Wealth  4th Mumbai Junior U-13"]
[Site "Mumbai"]
[Date "2019.01.06"]
[Round "8"]
[White "Anirudh Satish"]
[Black "Khairmode Aditya"]
[Result "0-1"]
[ECO "C42"]
[WhiteElo "1101"]
[BlackElo "1337"]
[Annotator "NA"]
[PlyCount "68"]
[EventDate "2018.12.30"]
[EventType "swiss"]
[EventCountry "IND"]
[SourceTitle "playchess.com"]
[Source "ChessBase"]
[SourceQuality "1"]
[TimeControl "40/5400+30:1800+30"]

1. e4 {[%emt 0:00:00]} e5 {[%emt 0:00:00]} 2. Nf3 {[%emt 0:00:00]} Nf6 {[%emt 0:00:00]} 3. Nxe5 {[%emt 0:00:00]} d6 {[%emt 0:00:00]} 4. Nf3 {[%emt 0:00:01]} Nxe4 {[%emt 0:00:00]} 5. Bc4 {[%emt 0:00:29]} Be7 {[%emt 0:00:51]} 6. O-O {[%emt 0:00:08]} d5 {[%emt 0:00:54]} 7. Bb3 {[%emt 0:00:07]} O-O {[%emt 0:05:36]} 8. d3 {[%emt 0:00:14]} Nf6 {[%emt 0:00:59]} 9. Nc3 {[%emt 0:00:11]} c6 {[%emt 0:01:35]} 10. Bf4 {[%emt 0:00:18]} Bg4 {[%emt 0:03:44]} 11. Nb1 {[%emt 0:00:35]} Na6 {[%emt 0:01:34]} 12. d4 {[%emt 0:00:21]} Nc7 {[%emt 0:01:23]} 13. c3 {[%emt 0:00:32]} Ne6 {[%emt 0:01:15]} 14. Bg3 {[%emt 0:00:24]} Ng5 {[%emt 0:03:53]} 15. Nbd2 {[%emt 0:00:07]} Nfe4 {[%emt 0:03:18]} 16. h3 {[%emt 0:01:17]} Bh5 {[%emt 0:02:30]} 17. Bf4 {[%emt 0:00:28]} Nxd2 {[%emt 0:02:28]} 18. Bxd2 {[%emt 0:00:13]} Bxf3 {[%emt 0:01:19]} 19. gxf3 {[%emt 0:00:13]} Nxh3+ {[%emt 0:00:17]} 20. Kg2 {[%emt 0:00:29]} Ng5 {[%emt 0:00:53]} 21. Rh1 {[%emt 0:00:24]} Ne6 {[%emt 0:02:51]} 22. Bc2 {[%emt 0:00:08]} g6 {[%emt 0:03:49]} 23. Qg1 {[%emt 0:00:14]} Bd6 {[%emt 0:02:51]} 24. Rh3 {[%emt 0:01:46]} Bf4 {[%emt 0:03:44]} 25. Be3 {[%emt 0:00:23]} Qf6 {[%emt 0:05:04]} 26. Bd1 {[%emt 0:00:53]} Rae8 {[%emt 0:10:24]} 27. Qh1 {[%emt 0:00:25]} Ng5 {[%emt 0:04:08]} 28. Rh4 {[%emt 0:00:36]} Bxe3 {[%emt 0:03:01]} 29. fxe3 {[%emt 0:00:18]} Rxe3 {[%emt 0:02:53]} 30. f4 {[%emt 0:00:27]} Ne4 {[%emt 0:01:26]} 31. Rxh7 {[%emt 0:01:27]} Rg3+ {[%emt 0:00:59]} 32. Kh2 {[%emt 0:00:49]} Kxh7 {[%emt 0:00:27]} 33. Bg4 {[%emt 0:00:38]} Qh4+ {[%emt 0:00:20]} 34. Bh3 {[%emt 0:00:44]} Qxh3# {[%emt 0:00:29]} 0-1

[Event "IIFL Wealth  4th Mumbai Junior U-13"]
[Site "Mumbai"]
[Date "2019.01.06"]
[Round "8"]
[White "Vedant Mistry"]
[Black "Sneha Halder"]
[Result "1-0"]
[ECO "D00"]
[WhiteElo "1075"]
[BlackElo "1338"]
[Annotator "NA"]
[PlyCount "31"]
[EventDate "2018.12.30"]
[EventType "swiss"]
[EventCountry "IND"]
[SourceTitle "playchess.com"]
[Source "ChessBase"]
[SourceQuality "1"]
[TimeControl "40/5400+30:1800+30"]

1. d4 {[%emt 0:00:00]} d5 {[%emt 0:00:00]} 2. Bf4 {[%emt 0:00:00]} Bf5 {[%emt 0:00:00]} 3. c4 {[%emt 0:00:00]} e6 {[%emt 0:06:28]} 4. e3 {[%emt 0:00:00]} Nf6 {[%emt 0:00:26]} 5. Nc3 {[%emt 0:00:06]} c6 {[%emt 0:00:07]} 6. Qb3 {[%emt 0:00:11]} Qc8 {[%emt 0:00:43]} 7. Rc1 {[%emt 0:00:12]} Nbd7 {[%emt 0:00:39]} 8. cxd5 {[%emt 0:00:22]} exd5 {[%emt 0:00:18]} 9. Nb5 {[%emt 0:00:56]} Kd8 {[%emt 0:01:10]} 10. Bd6 {[%emt 0:05:10]} Nb6 {[%emt 0:03:51]} 11. Nf3 {[%emt 0:05:13]} Ne8 {[%emt 0:04:08]} 12. Bxf8 {[%emt 0:03:17]} Rxf8 {[%emt 0:00:13]} 13. Qb4 {[%emt 0:00:27]} Rg8 {[%emt 0:01:18]} 14. Ne5 {[%emt 0:01:20]} Be6 {[%emt 0:04:54]} 15. Nxa7 {[%emt 0:04:56]} Qc7 {[%emt 0:02:10]} 16. Naxc6+ {[%emt 0:04:57]} 1-0

[Event "IIFL Wealth  4th Mumbai Junior U-13"]
[Site "Mumbai"]
[Date "2019.01.06"]
[Round "8"]
[White "Dabhade Arnav"]
[Black "Gosrani, Naiya"]
[Result "1/2-1/2"]
[ECO "C50"]
[WhiteElo "1064"]
[BlackElo "1235"]
[Annotator "NA"]
[PlyCount "59"]
[EventDate "2018.12.30"]
[EventType "swiss"]
[EventCountry "IND"]
[SourceTitle "playchess.com"]
[Source "ChessBase"]
[SourceQuality "1"]
[TimeControl "40/5400+30:1800+30"]

1. e4 e5 2. Nf3 Nc6 3. Bc4 Bc5 4. Nc3 Nf6 5. d3 d6 6. h3 a6 7. Bg5 Na5 8. Bb3 Nxb3 9. axb3 h6 10. Be3 Ba7 11. O-O Be6 12. Qd2 Qd7 13. Rfd1 O-O 14. d4 exd4 15. Bxd4 Bxd4 16. Nxd4 Rfe8 17. Nxe6 Qxe6 18. Re1 Rad8 19. Rad1 Qd7 20. Kh1 Qc6 21. Qd3 Rd7 22. Re2 Rde7 23. Rde1 Kf8 24. Kg1 Nh5 25. Qf3 Nf6 26. Qd3 Nh5 27. Qf3 Nf6 28. Qd3 Nh5 29. Qf3 Nf6 30. Qd3 1/2-1/2

[Event "IIFL Wealth  4th Mumbai Junior U-13"]
[Site "Mumbai"]
[Date "2019.01.06"]
[Round "8"]
[White "Ambre Ved"]
[Black "Marzouq, Chowdhury"]
[Result "0-1"]
[ECO "B54"]
[WhiteElo "1063"]
[BlackElo "1224"]
[Annotator "NA"]
[PlyCount "102"]
[EventDate "2018.12.30"]
[EventType "swiss"]
[EventCountry "IND"]
[SourceTitle "playchess.com"]
[Source "ChessBase"]
[SourceQuality "1"]
[TimeControl "40/5400+30:1800+30"]

1. e4 c5 2. Nf3 d6 3. d4 cxd4 4. Nxd4 Nf6 5. Bb5+ Bd7 6. Bxd7+ Nbxd7 7. Nc3 e6 8. Be3 a6 9. Qe2 Be7 10. f3 b5 11. a3 Nb6 12. Nc6 Qc7 13. Nxe7 Kxe7 14. Qf2 Nc4 15. b4 Rac8 16. Nd1 h6 17. O-O g5 18. f4 Ng4 19. Qf3 Ngxe3 20. Nxe3 Qa7 21. Rfe1 Nd2 22. Qf2 Rc7 23. Qxd2 gxf4 24. Kh1 fxe3 25. Rxe3 Rhc8 26. Rc1 Rxc2 27. Rxc2 Rxc2 28. Qxc2 Qxe3 29. Qc7+ Kf6 30. h3 Qxe4 31. Qxd6 Qe1+ 32. Kh2 Qe5+ 33. Qxe5+ Kxe5 34. Kg3 Kf5 35. Kf3 h5 36. g3 f6 37. Ke3 Ke5 38. Kd3 Kd5 39. g4 h4 40. Ke3 Ke5 41. Kf3 Kd4 42. Kf4 e5+ 43. Kf3 Kd3 44. Kf2 e4 45. Ke1 Ke3 46. Kf1 Kd2 47. Kf2 e3+ 48. Kf3 e2 49. Kf4 e1=Q 50. Kf5 Qe5+ 51. Kg6 Ke3 0-1

[Event "IIFL Wealth  4th Mumbai Junior U-13"]
[Site "Mumbai"]
[Date "2019.01.06"]
[Round "8"]
[White "Desai Sailee"]
[Black "Bhagyashree G Patil"]
[Result "0-1"]
[ECO "B01"]
[WhiteElo "1042"]
[BlackElo "1215"]
[Annotator "NA RC"]
[PlyCount "78"]
[EventDate "2018.12.30"]
[EventType "swiss"]
[EventCountry "IND"]
[SourceTitle "playchess.com"]
[Source "ChessBase"]
[SourceQuality "1"]
[TimeControl "40/5400+30:1800+30"]

1. e4 {[%emt 0:00:13]} d5 {[%emt 0:02:32]} 2. exd5 {[%emt 0:00:15]} Nf6 {[%emt 0:00:12]} 3. Nc3 {[%emt 0:00:51]} Nxd5 {[%emt 0:00:09]} 4. Nxd5 {[%emt 0:02:02]} Qxd5 {[%emt 0:00:09]} 5. Nf3 {[%emt 0:00:07]} Bf5 {[%emt 0:00:47]} 6. d3 {[%emt 0:00:55]} e6 {[%emt 0:00:45]} 7. Be2 {[%emt 0:01:40]} Be7 {[%emt 0:00:22]} 8. a3 {[%emt 0:02:21]} O-O {[%emt 0:04:56]} 9. O-O {[%emt 0:00:09]} c6 {[%emt 0:02:01]} 10. Bf4 {[%emt 0:04:58]} Qd8 {[%emt 0:10:49]} 11. h3 {[%emt 0:04:10]} h6 {[%emt 0:00:47]} 12. Re1 {[%emt 0:02:49]} Nd7 {[%emt 0:01:59]} 13. d4 {[%emt 0:02:58]} Nf6 {[%emt 0:03:53]} 14. Bh2 {[%emt 0:02:19]} Qb6 {[%emt 0:07:52]} 15. b4 {[%emt 0:04:10]} Rad8 {[%emt 0:09:55]} 16. Qc1 {[%emt 0:05:28]} a6 {[%emt 0:10:00]} 17. c3 {[%emt 0:03:09]} Bd6 {[%emt 0:13:02]} 18. Bxd6 {[%emt 0:06:35]} Rxd6 {[%emt 0:01:12]} 19. Ne5 {[%emt 0:00:07]} Rdd8 {[%emt 0:01:32]} 20. Qe3 {[%emt 0:07:49]} Nd5 {[%emt 0:04:16]} 21. Qg3 {[%emt 0:10:10]} Qc7 {[%emt 0:04:11]} 22. Qf3 {[%emt 0:10:18]} Kh8 {[%emt 0:05:39]} 23. Bc4 {[%emt 0:06:21]} Nf6 {[%emt 0:10:57]} 24. Re3 {[%emt 0:07:24]} Nd7 {[%emt 0:01:07]} 25. Nxd7 {[%emt 0:01:35]} Qxd7 {[%emt 0:00:10]} 26. Rae1 {[%emt 0:01:26]} Qc7 {[%emt 0:01:46]} 27. Bd3 {[%emt 0:04:38]} Bxd3 {[%emt 0:00:25]} 28. Rxd3 {[%emt 0:00:21]} Rfe8 {[%emt 0:01:06]} 29. Rde3 {[%emt 0:00:41]} Rd5 {[%emt 0:00:27]} 30. Re5 {[%emt 0:00:42]} Red8 {[%emt 0:00:20]} 31. Kh1 {[%emt 0:05:14]} R5d6 {[%emt 0:00:54]} 32. Qg4 {[%emt 0:01:07]} Rd5 {[%emt 0:00:51]} 33. Qf3 {[%emt 0:00:10]} Rg8 {[%emt 0:00:15]} 34. h4 {[%emt 0:01:38]} Rxe5 {[%emt 0:00:22]} 35. Rxe5 Qe7 {[%emt 0:00:21]} 36. g3 {[%emt 0:02:21]} Re8 {[%emt 0:00:18]} 37. Qe2 {[%emt 0:00:16]} Rd8 {[%emt 0:00:26]} 38. Qe3 {[%emt 0:00:41]} Qf6 {[%emt 0:00:24]} 39. Kg1 {[%emt 0:00:21]} Qg6 {[%emt 0:00:12]} 0-1

[Event "IIFL Wealth  4th Mumbai Junior U-13"]
[Site "Mumbai"]
[Date "2019.01.06"]
[Round "8"]
[White "Borate Tanvi"]
[Black "Anurag Panigrahi"]
[Result "0-1"]
[ECO "B92"]
[WhiteElo "1035"]
[BlackElo "1315"]
[Annotator "NA"]
[PlyCount "90"]
[EventDate "2018.12.30"]
[EventType "swiss"]
[EventCountry "IND"]
[SourceTitle "playchess.com"]
[Source "ChessBase"]
[SourceQuality "1"]
[TimeControl "40/5400+30:1800+30"]

1. e4 {[%emt 0:00:00]} c5 {[%emt 0:00:00]} 2. Nf3 {[%emt 0:00:00]} d6 {[%emt 0:00:00]} 3. d4 {[%emt 0:00:00]} cxd4 {[%emt 0:00:00]} 4. Nxd4 {[%emt 0:00:00]} Nf6 {[%emt 0:00:05]} 5. Nc3 {[%emt 0:00:08]} a6 {[%emt 0:00:11]} 6. Be2 {[%emt 0:02:13]} e5 {[%emt 0:00:07]} 7. Nf3 {[%emt 0:00:12]} Be7 {[%emt 0:01:13]} 8. O-O {[%emt 0:00:07]} b5 {[%emt 0:00:38]} 9. a3 {[%emt 0:00:51]} Bb7 {[%emt 0:00:56]} 10. Qd3 {[%emt 0:00:54]} Nbd7 {[%emt 0:00:53]} 11. Be3 {[%emt 0:02:57]} O-O {[%emt 0:01:40]} 12. Rad1 {[%emt 0:02:14]} Rc8 {[%emt 0:01:28]} 13. Ng5 {[%emt 0:13:22]} h6 {[%emt 0:02:23]} 14. Nh3 {[%emt 0:00:14]} Qc7 {[%emt 0:03:36]} 15. f4 {[%emt 0:03:26]} Nc5 {[%emt 0:02:29]} 16. Bxc5 {[%emt 0:00:22]} dxc5 {[%emt 0:13:09]} 17. fxe5 {[%emt 0:03:04]} Qxe5 {[%emt 0:00:52]} 18. Rf5 {[%emt 0:00:38]} Qd4+ {[%emt 0:02:17]} 19. Nf2 {[%emt 0:01:17]} Qxd3 {[%emt 0:03:33]} 20. Bxd3 {[%emt 0:01:10]} Rfd8 {[%emt 0:06:28]} 21. e5 {[%emt 0:05:32]} Nh7 {[%emt 0:08:57]} 22. Nce4 {[%emt 0:01:38]} Ng5 {[%emt 0:06:00]} 23. Nxg5 {[%emt 0:02:16]} Bxg5 {[%emt 0:03:04]} 24. Rf1 {[%emt 0:01:06]} g6 {[%emt 0:04:53]} 25. Rxf7 Kxf7 {[%emt 0:01:02]} 26. Ne4+ {[%emt 0:02:48]} Kg7 {[%emt 0:00:54]} 27. e6 {[%emt 0:05:47]} Bxe4 {[%emt 0:01:44]} 28. Bxe4 {[%emt 0:00:41]} Re8 {[%emt 0:01:31]} 29. Rf7+ {[%emt 0:00:43]} Kg8 {[%emt 0:00:40]} 30. Bd5 {[%emt 0:00:20]} Re7 {[%emt 0:00:55]} 31. c4 {[%emt 0:00:58]} Rxf7 {[%emt 0:00:55]} 32. exf7+ {[%emt 0:01:01]} Kf8 {[%emt 0:00:17]} 33. Be6 {[%emt 0:00:26]} Rc7 {[%emt 0:00:17]} 34. b3 {[%emt 0:00:20]} Rxf7 {[%emt 0:00:21]} 35. Bxf7 {[%emt 0:00:04]} Kxf7 {[%emt 0:00:06]} 36. Kf2 {[%emt 0:00:13]} bxc4 {[%emt 0:00:44]} 37. bxc4 {[%emt 0:00:14]} a5 {[%emt 0:00:16]} 38. a4 {[%emt 0:00:03]} Ke6 {[%emt 0:00:20]} 39. Ke2 {[%emt 0:00:24]} Ke5 {[%emt 0:00:05]} 40. Kd3 {[%emt 0:00:00]} Bc1 {[%emt 0:00:00]} 41. g3 {[%emt 0:01:14]} Kf5 {[%emt 0:00:28]} 42. h3 {[%emt 0:00:20]} h5 {[%emt 0:00:13]} 43. h4 {[%emt 0:00:29]} Kg4 {[%emt 0:00:06]} 44. Ke4 {[%emt 0:00:08]} Kxg3 {[%emt 0:00:07]} 45. Kd5 {[%emt 0:00:15]} Ba3 {[%emt 0:00:04] Kd4} 0-1